fUSD/lending_fUSD_20260109
["ID","MTS","AMOUNT","RATE_DAILY","PERIOD"]
[401117901,1767947443482,-2629.0,0.00017103,2]
[401117902,1767947443491,-1237.7,0.00017106,2]
[401117903,1767947443500,-1000.0,0.00017151,2]
[401117904,1767947443509,-175.36234342,0.00017173,2]
[401117905,1767947443518,-576.66,0.00017178,2]
[401117906,1767947443527,-466.84,0.00017178,2]
[401117907,1767947443537,-466.84,0.00017178,2]
[401117908,1767947443546,-466.84,0.00017178,2]
[401117909,1767947443555,-466.84,0.00017178,2]
[401117910,1767947443565,-2124.37812366,0.0001718,2]
[401117911,1767947443574,-1000.0,0.000172,2]
[401117912,1767947443583,-1237.7,0.00017234,2]
[401117913,1767947443591,-168.86770516,0.00017252,2]
[401117914,1767947443600,-268.65,0.00017278,2]
[401117915,1767947443610,-589.0,0.00017287,2]
[401117916,1767947443619,-166.66,0.00017342,2]
[401117917,1767947443628,-1237.7,0.00017361,2]
[401117918,1767947443641,-2629.0,0.00017364,2]
[401117919,1767947443919,-152.0,0.00017373,3]
[401117920,1767947443932,-5888.0,0.00017373,2]
[401117921,1767947443942,-1000.0,0.000174,2]
[401117922,1767947443954,-155.74193708,0.00017427,2]
[401117923,1767947443964,-574.12855637,0.00017427,2]
[401117924,1767947443974,-287.0,0.00017448,2]
[401117925,1767947443983,-576.66,0.00017452,2]
[401117926,1767947443994,-3000.0,0.00017452,7]
[401117927,1767947444003,-900.0,0.00017452,7]
[401117928,1767947444013,-10141.0,0.00017475,2]
[401117929,1767947444023,-1237.7,0.00017489,2]
[401117930,1767947444033,-178.0,0.000175,2]
[401117931,1767947444043,-2000.0,0.000175,2]
[401117932,1767947444053,-1601.1452557,0.000175,2]
[401117933,1767947444062,-152.0,0.00017505,4]
[401117934,1767947444073,-2124.37812366,0.0001754,2]
[401117935,1767947444083,-197.62,0.0001755,2]
[401117936,1767947444093,-340.0,0.00017613,2]
[401117937,1767947444102,-1237.7,0.00017617,2]
[401117938,1767947444112,-589.0,0.00017631,2]
[401117939,1767947444122,-152.0,0.00017637,5]
[401117940,1767947444131,-7807.75258789,0.0001764,2]
[401117942,1767947444141,-1000.0,0.00017681,2]
[401117943,1767947444151,-589.0,0.00017694,2]
[401117944,1767947444161,-779.93594743,0.000177,2]
[401117945,1767947444170,-589.0,0.00017725,2]
[401117946,1767947444179,-576.66,0.00017726,2]
[401117947,1767947444189,-1200.0,0.00017726,7]
[401117948,1767947444198,-1237.7,0.00017745,2]
[401117949,1767947444208,-661.58,0.00017752,2]
[401117950,1767947444218,-661.58,0.00017752,2]
[401117951,1767947444227,-661.58,0.00017752,2]
[401117952,1767947444236,-661.58,0.00017752,2]
[401117953,1767947444246,-661.58,0.00017752,2]
[401117954,1767947444256,-661.47,0.00017752,2]
[401117955,1767947444266,-10000.0,0.00017764,2]
[401117956,1767947444275,-152.0,0.00017769,6]
[401117957,1767947444284,-1124.89305331,0.00017781,2]
[401117958,1767947444296,-43709.14658721,0.000178,2]
[401117959,1767947444306,-1000.0,0.000178,2]
[401117960,1767947444317,-371.10849,0.0001782,2]
[401117961,1767947444326,-371.10849,0.0001782,2]
[401117962,1767947444337,-371.10849,0.0001782,2]
[401117963,1767947444346,-371.10848,0.0001782,2]
[401117964,1767947444356,-371.10849,0.0001782,2]
[401117965,1767947444365,-371.10849,0.0001782,2]
[401117966,1767947444375,-5888.0,0.00017847,2]
[401117967,1767947444383,-589.0,0.00017853,2]
[401117968,1767947444393,-2000.0,0.00017856,2]
[401117969,1767947444402,-200.0,0.00017856,2]
[401117970,1767947444411,-548.49326873,0.00017863,2]
[401117971,1767947444420,-300.0,0.00017863,2]
[401117972,1767947444429,-300.0,0.00017863,2]
[401117973,1767947444438,-300.0,0.00017863,2]
[401117974,1767947444447,-1124.89305331,0.00017863,2]
[401117975,1767947444456,-300.0,0.00017863,2]
[401117976,1767947444465,-300.0,0.00017863,2]
[401117977,1767947444474,-151.0,0.00017864,2]
[401117978,1767947444484,-151.0,0.00017864,2]
[401117979,1767947444493,-151.0,0.00017864,2]
[401117980,1767947444502,-151.0,0.00017864,2]
[401117981,1767947444511,-151.0,0.00017864,2]
[401117982,1767947444520,-151.0,0.00017864,2]
[401117983,1767947444529,-151.0,0.00017864,2]
[401117984,1767947444538,-151.0,0.00017864,2]
[401117985,1767947444547,-167.793254,0.00017864,2]
[401117986,1767947444556,-167.793254,0.00017864,2]
[401117987,1767947444566,-167.793254,0.00017864,2]
[401117988,1767947444575,-167.793254,0.00017864,2]
[401117989,1767947444583,-151.0,0.00017864,2]
[401117990,1767947444592,-151.0,0.00017864,2]
[401117991,1767947444601,-2148.955484,0.00017864,2]
[401117992,1767947444610,-2148.955484,0.00017864,2]
[401117993,1767947444620,-151.0,0.00017864,2]
[401117994,1767947444629,-151.0,0.00017864,2]
[401117995,1767947444640,-151.0,0.00017864,2]
[401117996,1767947444649,-151.0,0.00017864,2]
[401117997,1767947444658,-151.0,0.00017864,2]
[401117998,1767947444667,-151.0,0.00017864,2]
[401117999,1767947444676,-151.0,0.00017864,2]
[401118000,1767947444686,-151.0,0.00017864,2]
[401118001,1767947444696,-174.338724,0.00017864,2]
[401118002,1767947444706,-151.0,0.00017864,2]
[401118003,1767947444718,-165.939798,0.00017864,2]
[401118004,1767947444727,-282.584411,0.00017864,2]
[401118005,1767947444738,-151.0,0.00017864,2]
[401118006,1767947444747,-243.984023,0.00017864,2]
[401118007,1767947444758,-157.101696,0.00017864,2]
[401118008,1767947444767,-151.0,0.00017864,2]
[401118009,1767947444776,-162.814259,0.00017864,2]
[401118010,1767947444785,-151.0,0.00017864,2]
[401118011,1767947444795,-151.0,0.00017864,2]
[401118012,1767947444804,-151.0,0.00017864,2]
[401118013,1767947444816,-906.513466,0.00017864,2]
[401118014,1767947444825,-906.513466,0.00017864,2]
[401118015,1767947444835,-906.513466,0.00017864,2]
[401118016,1767947444844,-906.513466,0.00017864,2]
[401118017,1767947444854,-161.775609,0.00017864,2]
[401118018,1767947444862,-151.0,0.00017864,2]
[401118019,1767947444871,-843.943433,0.00017864,2]
[401118020,1767947444881,-843.943433,0.00017864,2]
[401118021,1767947444890,-843.943433,0.00017864,2]
[401118022,1767947444899,-151.0,0.00017864,2]
[401118023,1767947444909,-843.943433,0.00017864,2]
[401118024,1767947444919,-369.312873,0.00017864,2]
[401118025,1767947444928,-369.312873,0.00017864,2]
[401118026,1767947444939,-2056.110172,0.00017864,2]
[401118027,1767947444948,-369.312873,0.00017864,2]
[401118028,1767947444957,-2056.110172,0.00017864,2]
[401118029,1767947444967,-369.312873,0.00017864,2]
[401118030,1767947444977,-2056.110172,0.00017864,2]
[401118031,1767947444985,-2056.110172,0.00017864,2]
[401118032,1767947444994,-690.446226,0.00017864,2]
[401118033,1767947445004,-690.446226,0.00017864,2]
[401118034,1767947445013,-151.0,0.00017864,2]
[401118035,1767947445022,-690.446226,0.00017864,2]
[401118036,1767947445032,-690.446226,0.00017864,2]
[401118037,1767947445041,-151.0,0.00017864,2]
[401118038,1767947445051,-151.0,0.00017864,2]
[401118039,1767947445061,-1930.347932,0.00017864,2]
[401118040,1767947445070,-151.0,0.00017864,2]
[401118041,1767947445079,-332.214435,0.00017864,2]
[401118042,1767947445089,-1930.347932,0.00017864,2]
[401118043,1767947445099,-920.574913,0.00017864,2]
[401118044,1767947445108,-332.214435,0.00017864,2]
[401118045,1767947445118,-151.0,0.00017864,2]
[401118046,1767947445127,-151.0,0.00017864,2]
[401118047,1767947445136,-1930.347932,0.00017864,2]
[401118048,1767947445146,-297.140674,0.00017864,2]
[401118049,1767947445155,-920.574913,0.00017864,2]
[401118050,1767947445164,-151.0,0.00017864,2]
[401118051,1767947445174,-332.214435,0.00017864,2]
[401118052,1767947445185,-1930.347932,0.00017864,2]
[401118053,1767947445195,-297.140674,0.00017864,2]
[401118054,1767947445205,-920.574913,0.00017864,2]
[401118055,1767947445215,-151.0,0.00017864,2]
[401118056,1767947445226,-332.214435,0.00017864,2]
[401118057,1767947445236,-297.140674,0.00017864,2]
[401118058,1767947445246,-920.574913,0.00017864,2]
[401118059,1767947445256,-297.140674,0.00017864,2]
[401118060,1767947445265,-402.524167,0.00017864,2]
[401118061,1767947445274,-402.524167,0.00017864,2]
[401118062,1767947445283,-169.517952,0.00017864,2]
[401118063,1767947445293,-402.524167,0.00017864,2]
[401118064,1767947445302,-151.0,0.00017864,2]
[401118065,1767947445311,-490.578158,0.00017864,2]
[401118066,1767947445320,-373.230619,0.00017864,2]
[401118067,1767947445329,-151.0,0.00017864,2]
[401118068,1767947445339,-402.524167,0.00017864,2]
[401118069,1767947445347,-490.578158,0.00017864,2]
[401118070,1767947445357,-373.230619,0.00017864,2]
[401118071,1767947445366,-396.415369,0.00017864,2]
[401118072,1767947445375,-1978.368862,0.00017864,2]
[401118073,1767947445384,-151.0,0.00017864,2]
[401118074,1767947445393,-490.578158,0.00017864,2]
[401118075,1767947445403,-373.230619,0.00017864,2]
[401118076,1767947445412,-1978.368862,0.00017864,2]
[401118077,1767947445420,-490.578158,0.00017864,2]
[401118078,1767947445430,-151.0,0.00017864,2]
[401118079,1767947445439,-373.230619,0.00017864,2]
[401118080,1767947445448,-1978.368862,0.00017864,2]
[401118081,1767947445458,-396.415369,0.00017864,2]
[401118082,1767947445468,-151.0,0.00017864,2]
[401118083,1767947445478,-1978.368862,0.00017864,2]
[401118084,1767947445487,-396.415369,0.00017864,2]
[401118085,1767947445497,-151.0,0.00017864,2]
[401118086,1767947445506,-396.415369,0.00017864,2]
[401118087,1767947445516,-151.0,0.00017864,2]
[401118088,1767947445527,-927.067124,0.00017864,2]
[401118089,1767947445536,-151.0,0.00017864,2]
[401118090,1767947445545,-927.067124,0.00017864,2]
[401118091,1767947445554,-927.067124,0.00017864,2]
[401118092,1767947445563,-927.067124,0.00017864,2]
[401118093,1767947445572,-151.0,0.00017864,2]
[401118094,1767947445583,-151.0,0.00017864,2]
[401118095,1767947445592,-151.0,0.00017864,2]
[401118096,1767947445603,-151.0,0.00017864,2]
[401118097,1767947445613,-151.0,0.00017864,2]
[401118098,1767947445622,-151.0,0.00017864,2]
[401118099,1767947445631,-151.0,0.00017864,2]
[401118100,1767947445644,-154.549573,0.00017864,2]
[401118101,1767947445654,-156.25568,0.00017864,2]
[401118102,1767947445663,-4106.764814,0.00017864,2]
[401118103,1767947445673,-4106.764814,0.00017864,2]
[401118104,1767947445682,-4106.764814,0.00017864,2]
[401118105,1767947445692,-4106.764814,0.00017864,2]
[401118106,1767947445701,-275.980319,0.00017864,2]
[401118107,1767947445712,-275.980319,0.00017864,2]
[401118108,1767947445722,-151.0,0.00017864,2]
[401118109,1767947445731,-275.980319,0.00017864,2]
[401118110,1767947445739,-422.992724,0.00017864,2]
[401118111,1767947445749,-329.986632,0.00017864,2]
[401118112,1767947445759,-275.980319,0.00017864,2]
[401118113,1767947445767,-329.986632,0.00017864,2]
[401118114,1767947445776,-422.992724,0.00017864,2]
[401118115,1767947445785,-329.986632,0.00017864,2]
[401118116,1767947445794,-422.992724,0.00017864,2]
[401118117,1767947445803,-329.986632,0.00017864,2]
[401118118,1767947445813,-422.992724,0.00017864,2]
[401118119,1767947445822,-1480.146365,0.00017864,2]
[401118120,1767947445832,-4841.75537392,0.00017864,2]
[401118121,1767947445844,-9412.98693621,0.00017864,4]
[401118122,1767947445853,-46980.97995483,0.00017864,2]
[401118123,1767947445862,-1000.0,0.00017865,2]
[401118124,1767947445871,-1237.7,0.00017872,2]
[401118125,1767947445880,-1287.495,0.00017873,2]
[401118126,1767947445888,-528.055,0.00017873,2]
[401118127,1767947445897,-1202.14,0.00017873,2]
[401118128,1767947445906,-916.599,0.00017873,2]
[401118129,1767947445915,-3603.334,0.00017873,2]
[401118131,1767947445925,-1312.0,0.00017873,2]
[401118133,1767947445934,-2459.15,0.00017873,2]
[401118135,1767947445943,-1330.0,0.00017873,2]
[401118137,1767947445953,-230.35860744,0.00017873,2]
[401118138,1767947445963,-151.0,0.00017873,2]
[401118139,1767947445972,-317.695304,0.00017873,2]
[401118140,1767947445981,-317.695304,0.00017873,2]
[401118141,1767947445990,-317.695304,0.00017873,2]
[401118142,1767947445999,-317.695304,0.00017873,2]
[401118143,1767947446008,-151.0,0.00017873,2]
[401118144,1767947446017,-151.0,0.00017873,2]
[401118145,1767947446027,-166.779435,0.00017873,2]
[401118146,1767947446036,-151.0,0.00017873,2]
[401118147,1767947446046,-151.0,0.00017873,2]
[401118148,1767947446055,-151.0,0.00017873,2]
[401118149,1767947446067,-151.0,0.00017873,2]
[401118150,1767947446077,-151.0,0.00017873,2]
[401118151,1767947446086,-241.264021,0.00017873,2]
[401118152,1767947446096,-151.0,0.00017873,2]
[401118153,1767947446105,-151.0,0.00017873,2]
[401118154,1767947446114,-151.0,0.00017873,2]
[401118155,1767947446123,-151.0,0.00017873,2]
[401118156,1767947446133,-151.0,0.00017873,2]
[401118157,1767947446142,-151.0,0.00017873,2]
[401118158,1767947446151,-260.884525,0.00017873,2]
[401118159,1767947446161,-151.0,0.00017873,2]
[401118160,1767947446170,-151.0,0.00017873,2]
[401118161,1767947446179,-306.74271188,0.00017888,2]
[401118162,1767947446188,-1000.0,0.00017892,2]
[401118163,1767947446198,-565.17771938,0.000179,2]
[401118164,1767947446207,-2124.37812366,0.000179,2]
[401118165,1767947446216,-168.86770516,0.000179,2]
[401118166,1767947446226,-157.838488,0.000179,2]
[401118167,1767947446235,-151.0,0.000179,2]
[401118168,1767947446244,-274.942124,0.000179,2]
[401118169,1767947446253,-151.0,0.000179,2]
[401118170,1767947446262,-274.942124,0.000179,2]
[401118171,1767947446271,-151.0,0.000179,2]
[401118172,1767947446280,-274.942124,0.000179,2]
[401118173,1767947446289,-274.942124,0.000179,2]
[401118174,1767947446298,-354.186469,0.000179,2]
[401118175,1767947446307,-151.0,0.000179,2]
[401118176,1767947446317,-354.186469,0.000179,2]
[401118177,1767947446326,-151.0,0.000179,2]
[401118178,1767947446335,-354.186469,0.000179,2]
[401118179,1767947446345,-187.751112,0.000179,2]
[401118180,1767947446354,-354.186469,0.000179,2]
[401118181,1767947446363,-456.940757,0.000179,2]
[401118182,1767947446372,-151.0,0.000179,2]
[401118183,1767947446382,-456.940757,0.000179,2]
[401118184,1767947446391,-456.940757,0.000179,2]
[401118185,1767947446401,-456.940757,0.000179,2]
[401118186,1767947446411,-151.0,0.000179,2]
[401118187,1767947446420,-151.0,0.000179,2]
[401118188,1767947446429,-151.0,0.000179,2]
[401118190,1767947446438,-151.0,0.000179,2]
[401118191,1767947446449,-165.977464,0.000179,2]
[401118192,1767947446459,-167.181988,0.000179,2]
[401118193,1767947446468,-167.181988,0.000179,2]
[401118194,1767947446478,-167.181988,0.000179,2]
[401118195,1767947446487,-167.181988,0.000179,2]
[401118196,1767947446500,-500.0,0.000179,2]
[401118197,1767947446509,-500.0,0.000179,2]
[401118198,1767947446518,-500.0,0.000179,2]
[401118199,1767947446528,-500.0,0.000179,2]
[401118200,1767947446539,-500.0,0.000179,2]
[401118201,1767947446549,-363.73506313,0.000179,2]
[401118202,1767947446558,-152.0,0.00017901,7]
[401118203,1767947446568,-1124.89305331,0.00017918,2]
[401118204,1767947446577,-242.84,0.00017932,2]
[401118205,1767947446587,-863.72,0.00017944,2]
[401118206,1767947446597,-877.0,0.00017945,2]
[401118207,1767947446607,-877.0,0.00017958,2]
[401118208,1767947446617,-877.0,0.00017961,2]
[401118209,1767947446629,-500.0,0.00017973,2]
[401118210,1767947446640,-500.0,0.00017973,2]
[401118211,1767947446650,-500.0,0.00017973,2]
[401118212,1767947446660,-500.0,0.00017973,2]
[401118213,1767947446671,-500.0,0.00017973,2]
[401118214,1767947446682,-286.84842062,0.00017973,2]
[401118216,1767947446691,-500.0,0.00017973,2]
[401118218,1767947446701,-500.0,0.00017973,2]
[401118219,1767947446710,-500.0,0.00017973,2]
[401118220,1767947446722,-500.0,0.00017973,2]
[401118221,1767947446731,-500.0,0.00017973,2]
[401118222,1767947446740,-609.94892981,0.00017973,2]
[401118224,1767947446749,-279.31517583,0.00017973,2]
[401118226,1767947446759,-500.0,0.00017973,2]
[401118227,1767947446768,-500.0,0.00017973,2]
[401118228,1767947446777,-515.27642925,0.00017973,2]
[401118229,1767947446786,-578.02071049,0.00017973,2]
[401118230,1767947446796,-500.0,0.00017973,2]
[401118231,1767947446805,-501.05787152,0.00017973,2]
[401118232,1767947446815,-500.0,0.00017973,2]
[401118233,1767947446825,-150.18655509,0.00017973,2]
[401118234,1767947446834,-500.0,0.00017973,2]
[401118235,1767947446844,-500.0,0.00017973,2]
[401118236,1767947446854,-168.53464326,0.00017973,2]
[401118237,1767947446863,-195.06667749,0.00017973,2]
[401118238,1767947446874,-500.0,0.00017973,2]
[401118239,1767947446883,-500.0,0.00017973,2]
[401118240,1767947446892,-500.0,0.00017973,2]
[401118241,1767947446902,-500.0,0.00017973,2]
[401118242,1767947446912,-500.0,0.00017973,2]
[401118243,1767947446921,-500.0,0.00017973,2]
[401118244,1767947446930,-429.09119552,0.00017973,2]
[401118245,1767947446939,-500.0,0.00017973,2]
[401118246,1767947446948,-500.0,0.00017973,2]
[401118247,1767947446958,-500.0,0.00017973,2]
[401118248,1767947446967,-500.0,0.00017973,2]
[401118249,1767947446976,-500.0,0.00017973,2]
[401118250,1767947446986,-546.15438132,0.00017973,2]
[401118251,1767947446995,-398.03125352,0.00017973,2]
[401118252,1767947447005,-500.0,0.00017973,2]
[401118253,1767947447014,-500.0,0.00017973,2]
[401118254,1767947447024,-500.0,0.00017973,2]
[401118255,1767947447033,-500.0,0.00017973,2]
[401118256,1767947447043,-500.0,0.00017973,2]
[401118257,1767947447052,-500.0,0.00017973,2]
[401118258,1767947447062,-500.0,0.00017973,2]
[401118259,1767947447072,-500.0,0.00017973,2]
[401118260,1767947447081,-500.0,0.00017973,2]
[401118261,1767947447091,-500.0,0.00017973,2]
[401118262,1767947447101,-500.0,0.00017973,2]
[401118263,1767947447111,-500.0,0.00017973,2]
[401118264,1767947447120,-500.0,0.00017973,2]
[401118265,1767947447130,-570.66707455,0.00017973,2]
[401118266,1767947447139,-500.0,0.00017973,2]
[401118267,1767947447149,-500.0,0.00017973,2]
[401118268,1767947447158,-500.0,0.00017973,2]
[401118269,1767947447168,-500.0,0.00017973,2]
[401118270,1767947447177,-185.94513151,0.00017973,2]
[401118271,1767947447187,-595.37131296,0.00017975,2]
[401118272,1767947447196,-316.41218394,0.00017999,2]
[401118273,1767947447206,-11541.22312161,0.00017999,2]
[401118274,1767947447215,-300.0,0.00017999,2]
[401118275,1767947447224,-300.0,0.00017999,2]
[401118276,1767947447234,-150.0,0.00018,2]
[401118277,1767947447243,-19850.53332582,0.00018,2]
[401118278,1767947447322,-27233.18047703,0.00018,2]
[401118279,1767947447337,-273.27992881,0.00018,2]
[401118280,1767947448426,-346.33140444,0.00016545,2]
[401118281,1767947448442,-628.28861067,0.00016545,2]
[401118282,1767947448474,-302.05042645,0.00016545,2]
[401118283,1767947448485,-203.47592344,0.00016545,2]
[401118284,1767947448495,-1480.146365,0.00016545,2]
[401118285,1767947448504,-661.58,0.00016793,2]
[401118286,1767947448515,-1480.146365,0.00017864,2]
[401118287,1767947448524,-1480.146365,0.00017864,2]
[401118288,1767947448533,-1419.205,0.00017873,2]
[401118289,1767947448543,-175.36234342,0.000179,2]
[401118290,1767947448552,-6976.36895916,0.00018,2]
[401118291,1767947448563,-969.04,0.00018,2]
[401118292,1767947448574,-469.06607036,0.00018,2]
[401118293,1767947448595,-151.0,0.00016545,2]
[401118294,1767947448604,-22948.19524539,0.00018,2]
[401118295,1767947448615,-25981.31607109,0.00018,2]
[401118296,1767947448626,-1130.40073013,0.00018,2]
[401118297,1767947448640,-911.29083245,0.00018,2]
[401118298,1767947448651,-662.76,0.00018,2]
[401118299,1767947448662,-4593.71028193,0.00018,2]
[401118300,1767947448672,-468.72833472,0.00018,2]
[401118301,1767947448686,-5656.98874647,0.00018,2]
[401118302,1767947449122,-466.84,0.00016356,2]
[401118303,1767947449132,-1440.58836594,0.00016545,2]
[401118304,1767947449145,-39.55799906,0.00016545,2]
[401118305,1767947449154,-210.425724,0.00016545,2]
[401118306,1767947449163,-151.0,0.00017864,2]
[401118307,1767947449172,-1480.146365,0.00017864,2]
[401118308,1767947449182,-21488.59644794,0.00018,2]
[401118309,1767947449193,-2727.0,0.00018,2]
[401118310,1767947449204,-15796.29031247,0.00018,2]
[401118311,1767947449215,-633.850205,0.00018,2]
[401118312,1767947449226,-2505.35903128,0.00018,2]
[401118313,1767947449241,-636.80919875,0.00018,2]
[401118314,1767947449254,-364.34151059,0.00018,2]
[401118315,1767947449265,-1010.1,0.00018,2]
[401118316,1767947449356,-546.15709375,0.00018,2]
[401118317,1767947449367,-1585.57444177,0.00018,2]
[401118318,1767947449378,-4095.31242003,0.00018,2]
[401118319,1767947799669,532.0,0.00030136,120]
[401118320,1767947799751,162.0,0.000301,120]
[401118321,1767947800134,173.88,7.9e-05,2]
[401118322,1767947800232,162.0,0.000301,120]
[401118323,1767947800350,173.88,9.798e-05,2]
[401118325,1767947819431,162.0,0.000301,120]
[401118326,1767947820974,162.0,0.000301,120]
[401118330,1767948109893,513.08880573,0.00030136,120]
[401118331,1767948110048,500.0,0.00030136,120]
[401118332,1767948110669,566.07,0.00030136,120]
[401118333,1767948110736,500.0,0.00030136,120]
[401118334,1767948110807,511.26,0.00030136,120]
[401118335,1767948110862,566.07,0.00030136,120]
[401118336,1767948110916,500.0,0.00030136,120]
[401118337,1767948110980,511.26,0.00030136,120]
[401118338,1767948111108,566.07,0.00030136,120]
[401118339,1767948111162,500.0,0.00030136,120]
[401118340,1767948111246,511.26,0.00030136,120]
[401118341,1767948111317,566.07,0.00030136,120]
[401118342,1767948111372,500.0,0.00030136,120]
[401118343,1767948111435,500.0,0.00030136,120]
[401118344,1767948111493,511.26,0.00030136,120]
[401118345,1767948111568,566.07,0.00030136,120]
[401118346,1767948111626,500.0,0.00030136,120]
[401118347,1767948111692,500.0,0.00030136,120]
[401118348,1767948111745,511.26,0.00030136,120]
[401118349,1767948111814,500.0,0.00030136,120]
[401118350,1767948111874,566.07,0.00030136,120]
[401118351,1767948111942,500.0,0.00030136,120]
[401118352,1767948112003,511.26,0.00030136,120]
[401118353,1767948112066,500.0,0.00030136,120]
[401118354,1767948112119,566.07,0.00030136,120]
[401118355,1767948112208,500.0,0.00030136,120]
[401118356,1767948112288,511.26,0.00030136,120]
[401118357,1767948112363,500.0,0.00030136,120]
[401118358,1767948112433,566.07,0.00030136,120]
[401118359,1767948112495,500.0,0.00030136,120]
[401118360,1767948112571,511.26,0.00030136,120]
[401118361,1767948112646,566.07,0.00030136,120]
[401118362,1767948112711,500.0,0.00030136,120]
[401118363,1767948112776,500.0,0.00030136,120]
[401118364,1767948112838,511.26,0.00030136,120]
[401118365,1767948112901,566.07,0.00030136,120]
[401118366,1767948112965,500.0,0.00030136,120]
[401118367,1767948113029,500.0,0.00030136,120]
[401118368,1767948113091,566.07,0.00030136,120]
[401118369,1767948113148,511.26,0.00030136,120]
[401118370,1767948113222,500.0,0.00030136,120]
[401118371,1767948113293,500.0,0.00030136,120]
[401118372,1767948113356,566.07,0.00030136,120]
[401118373,1767948113419,511.26,0.00030136,120]
[401118374,1767948113487,500.0,0.00030136,120]
[401118375,1767948113552,500.0,0.00030136,120]
[401118376,1767948113617,566.07,0.00030136,120]
[401118377,1767948113680,511.26,0.00030136,120]
[401118378,1767948113740,500.0,0.00030136,120]
[401118379,1767948113801,500.0,0.00030136,120]
[401118380,1767948113870,566.07,0.00030136,120]
[401118381,1767948113935,500.0,0.00030136,120]
[401118382,1767948114000,511.26,0.00030136,120]
[401118383,1767948114069,500.0,0.00030136,120]
[401118384,1767948114148,566.07,0.00030136,120]
[401118385,1767948115321,511.26,0.00030136,120]
[401118386,1767948115378,388.68367768,0.00030136,120]
[401118387,1767948115440,500.0,0.00030136,120]
[401118388,1767948115502,566.07,0.00030136,120]
[401118389,1767948115633,500.0,0.00030136,120]
[401118390,1767948115743,566.07,0.00030136,120]
[401118391,1767948115797,500.0,0.00030136,120]
[401118392,1767948115854,511.26,0.00030136,120]
[401118393,1767948115920,566.07,0.00030136,120]
[401118394,1767948115974,500.0,0.00030136,120]
[401118395,1767948116029,511.26,0.00030136,120]
[401118396,1767948116088,566.07,0.00030136,120]
[401118397,1767948116146,500.0,0.00030136,120]
[401118398,1767948116203,511.26,0.00030136,120]
[401118399,1767948116326,566.07,0.00030136,120]
[401118400,1767948116386,500.0,0.00030136,120]
[401118401,1767948116447,511.26,0.00030136,120]
[401118403,1767948116516,566.07,0.00030136,120]
[401118405,1767948116569,346.1782894,0.00030136,120]
[401118406,1767948116641,511.26,0.00030136,120]
[401118407,1767948116704,566.07,0.00030136,120]
[401118408,1767948116761,511.26,0.00030136,120]
[401118409,1767948116872,566.07,0.00030136,120]
[401118410,1767948116962,511.26,0.00030136,120]
[401118411,1767948117044,511.26,0.00030136,120]
[401118412,1767948117097,566.29145891,0.00030136,120]
[401118413,1767948117169,511.26,0.00030136,120]
[401118414,1767948117227,511.30891607,0.00030136,120]
[401118415,1767948117751,439.48005164,0.00030136,120]
[401118416,1767948118359,514.33072017,0.00030136,120]